[Event "*** MasterClass Titled Tuesday Blitz"]
[Site "Chess.com"]
[Date "2017.12.12"]
[Round "7"]
[White "TheBigBoss04"]
[Black "lukas_111111"]
[Result "1-0"]
[WhiteElo "2486"]
[BlackElo "2442"]
[TimeControl "180+2"]
[EndTime "14:38:16 PST"]
[Termination "TheBigBoss04 won by resignation"]

1. Nf3 {[%clk 0:03:00.7]} 1... Nf6 {[%clk 0:02:55.4]} 2. c4 {[%clk 0:03:00.8]}
2... e6 {[%clk 0:02:54.5]} 3. g3 {[%clk 0:02:57.8]} 3... b6 {[%clk 0:02:54.8]}
4. Bg2 {[%clk 0:02:58.6]} 4... Bb7 {[%clk 0:02:56.4]} 5. O-O {[%clk 0:02:59.3]}
5... c5 {[%clk 0:02:56.9]} 6. d3 {[%clk 0:02:59.3]} 6... Be7 {[%clk 0:02:57.5]}
7. b3 {[%clk 0:02:56.3]} 7... O-O {[%clk 0:02:58.5]} 8. Bb2 {[%clk 0:02:56.8]}
8... d6 {[%clk 0:02:59.4]} 9. Nbd2 {[%clk 0:02:56]} 9... a6 {[%clk 0:02:56.4]}
10. e3 {[%clk 0:02:51.1]} 10... b5 {[%clk 0:02:55.3]} 11. Qe2 {[%clk 0:02:43.7]}
11... Nc6 {[%clk 0:02:47.8]} 12. Rfd1 {[%clk 0:02:42]} 12... e5 {[%clk
0:02:38.5]} 13. d4 {[%clk 0:02:31.2]} 13... exd4 {[%clk 0:02:38.6]} 14. exd4
{[%clk 0:02:33.1]} 14... cxd4 {[%clk 0:02:31.8]} 15. Nxd4 {[%clk 0:02:32.5]}
15... Nxd4 {[%clk 0:02:32.6]} 16. Bxd4 {[%clk 0:02:34.4]} 16... Bxg2 {[%clk
0:02:33.5]} 17. Kxg2 {[%clk 0:02:35.4]} 17... bxc4 {[%clk 0:02:33.7]} 18. Nxc4
{[%clk 0:02:31.6]} 18... Rb8 {[%clk 0:01:58.7]} 19. Rac1 {[%clk 0:02:26.5]}
19... Re8 {[%clk 0:01:56.9]} 20. Qf3 {[%clk 0:02:25.9]} 20... Nd7 {[%clk
0:01:40.8]} 21. Qg4 {[%clk 0:02:17.9]} 21... g6 {[%clk 0:01:37.2]} 22. Ba1
{[%clk 0:02:13.5]} 22... Nf6 {[%clk 0:01:20.3]} 23. Bxf6 {[%clk 0:02:04.8]}
23... Bxf6 {[%clk 0:01:20.9]} 24. Nxd6 {[%clk 0:02:05.8]} 24... Re5 {[%clk
0:00:51.2]} 25. Nxf7 {[%clk 0:01:46.8]} 25... Kxf7 {[%clk 0:00:48.2]} 26. Rxd8
{[%clk 0:01:44.8]} 26... Rxd8 {[%clk 0:00:49.3]} 27. Rc7+ {[%clk 0:01:45.2]}
27... Be7 {[%clk 0:00:49.5]} 28. Qf4+ {[%clk 0:01:42.1]} 28... Rf5 {[%clk
0:00:50.7]} 29. Qc4+ {[%clk 0:01:41.8]} 29... Kf8 {[%clk 0:00:49.3]} 30. Qe6
{[%clk 0:01:32]} 30... Re8 {[%clk 0:00:40.7]} 31. Qxa6 {[%clk 0:01:22]} 31...
Rf6 {[%clk 0:00:16.4]} 32. Qc4 {[%clk 0:01:18.9]} 32... h5 {[%clk 0:00:14]} 33.
Rc8 {[%clk 0:01:19.2]} 33... Rxc8 {[%clk 0:00:14.3]} 34. Qxc8+ {[%clk
0:01:21.1]} 34... Kf7 {[%clk 0:00:15.9]} 35. a4 {[%clk 0:01:20.2]} 35... Rf5
{[%clk 0:00:17.1]} 36. Qc4+ {[%clk 0:01:16]} 36... Kg7 {[%clk 0:00:17.3]} 37. a5
{[%clk 0:01:13.9]} 37... Bc5 {[%clk 0:00:15.4]} 38. f4 {[%clk 0:01:13.2]} 38...
Be7 {[%clk 0:00:11.7]} 39. a6 {[%clk 0:01:12.7]} 39... Bf6 {[%clk 0:00:12]} 40.
a7 {[%clk 0:01:11.9]} 40... Ra5 {[%clk 0:00:13]} 41. Qc7+ {[%clk 0:01:13.1]} 1-0

[Event "*** MasterClass Titled Tuesday Blitz"]
[Site "Chess.com"]
[Date "2017.12.12"]
[Round "7"]
[White "Divertissement"]
[Black "calemcc"]
[Result "1-0"]
[WhiteElo "2400"]
[BlackElo "2272"]
[TimeControl "180+2"]
[EndTime "14:38:16 PST"]
[Termination "Divertissement won by checkmate"]

1. e4 {[%clk 0:03:01.9]} 1... e6 {[%clk 0:03:00.6]} 2. d4 {[%clk 0:03:02.5]}
2... d5 {[%clk 0:03:02.5]} 3. Nc3 {[%clk 0:03:02.4]} 3... Nf6 {[%clk 0:03:02.9]}
4. e5 {[%clk 0:03:03.9]} 4... Nfd7 {[%clk 0:03:04.3]} 5. f4 {[%clk 0:03:05.6]}
5... c5 {[%clk 0:03:05.9]} 6. Nf3 {[%clk 0:03:07.3]} 6... Nc6 {[%clk 0:03:07.8]}
7. Be3 {[%clk 0:03:08.6]} 7... a6 {[%clk 0:03:09.7]} 8. Qd2 {[%clk 0:03:10.1]}
8... cxd4 {[%clk 0:03:11.6]} 9. Nxd4 {[%clk 0:03:10.7]} 9... Bc5 {[%clk
0:03:13.5]} 10. O-O-O {[%clk 0:03:07.7]} 10... O-O {[%clk 0:03:14.5]} 11. h4
{[%clk 0:03:02.1]} 11... Nxd4 {[%clk 0:03:15.6]} 12. Bxd4 {[%clk 0:03:03]} 12...
b5 {[%clk 0:03:17.5]} 13. Qf2 {[%clk 0:03:03.8]} 13... Qc7 {[%clk 0:03:12.3]}
14. h5 {[%clk 0:03:00.6]} 14... b4 {[%clk 0:03:13.6]} 15. Ne2 {[%clk 0:02:57.3]}
15... a5 {[%clk 0:03:14]} 16. Kb1 {[%clk 0:02:51.6]} 16... Ba6 {[%clk
0:03:14.5]} 17. h6 {[%clk 0:02:49.8]} 17... g6 {[%clk 0:03:14.8]} 18. g4 {[%clk
0:02:49.2]} 18... Rfc8 {[%clk 0:03:15.7]} 19. Rc1 {[%clk 0:02:49]} 19... a4
{[%clk 0:03:10.6]} 20. f5 {[%clk 0:02:35.5]} 20... b3 {[%clk 0:03:04.5]} 21. Nc3
{[%clk 0:02:21.2]} 21... Bxd4 {[%clk 0:02:58.5]} 22. Qxd4 {[%clk 0:02:21.2]}
22... bxa2+ {[%clk 0:02:52.3]} 23. Kxa2 {[%clk 0:02:18.9]} 23... Qxe5 {[%clk
0:02:51.8]} 24. Qxe5 {[%clk 0:02:15.1]} 24... Nxe5 {[%clk 0:02:53.7]} 25. fxe6
{[%clk 0:02:15.9]} 25... fxe6 {[%clk 0:02:54]} 26. Re1 {[%clk 0:02:12.7]} 26...
Nxg4 {[%clk 0:02:46.5]} 27. Bh3 {[%clk 0:02:01.1]} 27... Rc4 {[%clk 0:02:35.6]}
28. Rhg1 {[%clk 0:01:56.3]} 28... Nxh6 {[%clk 0:02:32.5]} 29. Bxe6+ {[%clk
0:01:57.7]} 29... Kh8 {[%clk 0:02:27.9]} 30. Bxd5 {[%clk 0:01:59.1]} 30... Rb8
{[%clk 0:02:17]} 31. Bxc4 {[%clk 0:01:58.2]} 31... Bxc4+ {[%clk 0:02:18.9]} 32.
Ka3 {[%clk 0:01:58.7]} 32... Nf5 {[%clk 0:02:13.5]} 33. Nxa4 {[%clk 0:01:58.1]}
33... Nd4 {[%clk 0:02:10.4]} 34. Rg2 {[%clk 0:01:53.1]} 34... Ra8 {[%clk
0:01:56.9]} 35. Re4 {[%clk 0:01:39.4]} 35... Nb5+ {[%clk 0:01:48.7]} 36. Kb4
{[%clk 0:01:39.7]} 36... Bd5 {[%clk 0:01:50.1]} 37. Kxb5 {[%clk 0:01:27.9]}
37... Bxe4 {[%clk 0:01:50.6]} 38. Re2 {[%clk 0:01:29.3]} 38... Re8 {[%clk
0:01:44.9]} 39. Nc3 {[%clk 0:01:25.7]} 39... Rb8+ {[%clk 0:01:40.1]} 40. Kc5
{[%clk 0:01:23.2]} 40... Bf5 {[%clk 0:01:37.1]} 41. b4 {[%clk 0:01:20.7]} 41...
Rc8+ {[%clk 0:01:28.6]} 42. Kd4 {[%clk 0:01:21]} 42... Rd8+ {[%clk 0:01:29.7]}
43. Nd5 {[%clk 0:01:21.1]} 43... Bd7 {[%clk 0:01:27.3]} 44. c4 {[%clk
0:01:16.7]} 44... Bc6 {[%clk 0:01:28.3]} 45. b5 {[%clk 0:01:17.7]} 45... Bb7
{[%clk 0:01:28.6]} 46. Re7 {[%clk 0:01:16.7]} 46... Bxd5 {[%clk 0:01:28.9]} 47.
cxd5 {[%clk 0:01:18.6]} 47... h5 {[%clk 0:01:29.7]} 48. b6 {[%clk 0:01:19.8]}
48... h4 {[%clk 0:01:29.8]} 49. Kc5 {[%clk 0:01:20.5]} 49... h3 {[%clk
0:01:30.3]} 50. Re3 {[%clk 0:01:21.6]} 50... Kg7 {[%clk 0:01:29.3]} 51. Rxh3
{[%clk 0:01:23]} 51... Kf6 {[%clk 0:01:30.8]} 52. Re3 {[%clk 0:01:23.4]} 52...
g5 {[%clk 0:01:31.5]} 53. b7 {[%clk 0:01:24]} 53... Kf5 {[%clk 0:01:31.1]} 54.
Kc6 {[%clk 0:01:25.3]} 54... Kf4 {[%clk 0:01:32.5]} 55. Re1 {[%clk 0:01:26.9]}
55... g4 {[%clk 0:01:31.7]} 56. d6 {[%clk 0:01:26.1]} 56... Kf3 {[%clk
0:01:31.5]} 57. Kc7 {[%clk 0:01:27.3]} 57... Rh8 {[%clk 0:01:29.3]} 58. b8=Q
{[%clk 0:01:28]} 58... Rxb8 {[%clk 0:01:30.8]} 59. Kxb8 {[%clk 0:01:29.3]} 59...
g3 {[%clk 0:01:32.7]} 60. d7 {[%clk 0:01:30.3]} 60... Kf2 {[%clk 0:01:34.3]} 61.
Ra1 {[%clk 0:01:30.8]} 61... g2 {[%clk 0:01:35.3]} 62. d8=Q {[%clk 0:01:32.7]}
62... g1=B {[%clk 0:01:35.9]} 63. Qd4+ {[%clk 0:01:32.1]} 63... Kf3 {[%clk
0:01:36.1]} 64. Rxg1 {[%clk 0:01:31.4]} 64... Ke2 {[%clk 0:01:38]} 65. Rg2+
{[%clk 0:01:32.4]} 65... Kf3 {[%clk 0:01:39.2]} 66. Rf2+ {[%clk 0:01:33]} 66...
Kg3 {[%clk 0:01:40.2]} 67. Qf4+ {[%clk 0:01:34.5]} 67... Kh3 {[%clk 0:01:42.1]}
68. Rh2# {[%clk 0:01:35.8]} 1-0

[Event "*** MasterClass Titled Tuesday Blitz"]
[Site "Chess.com"]
[Date "2017.12.12"]
[Round "7"]
[White "FearNoEvil12"]
[Black "truki"]
[Result "0-1"]
[WhiteElo "2052"]
[BlackElo "2218"]
[TimeControl "180+2"]
[EndTime "14:38:36 PST"]
[Termination "truki won by resignation"]

1. e4 {[%clk 0:03:01.9]} 1... c6 {[%clk 0:02:57.7]} 2. d4 {[%clk 0:03:01.6]}
2... d5 {[%clk 0:02:55.9]} 3. Nc3 {[%clk 0:03:03]} 3... dxe4 {[%clk 0:02:56.8]}
4. Nxe4 {[%clk 0:03:03.9]} 4... Bf5 {[%clk 0:02:58.3]} 5. Ng3 {[%clk 0:03:04.5]}
5... Bg6 {[%clk 0:02:57.4]} 6. Bc4 {[%clk 0:03:05.9]} 6... e6 {[%clk 0:02:57.8]}
7. Nf3 {[%clk 0:03:07.3]} 7... Nf6 {[%clk 0:02:52.3]} 8. h4 {[%clk 0:03:07.9]}
8... h6 {[%clk 0:02:53]} 9. Ne5 {[%clk 0:03:07.6]} 9... Bh7 {[%clk 0:02:51.1]}
10. Be3 {[%clk 0:03:06.4]} 10... Nbd7 {[%clk 0:02:50.9]} 11. Qe2 {[%clk
0:03:03.8]} 11... Nxe5 {[%clk 0:02:49.8]} 12. dxe5 {[%clk 0:03:03.6]} 12... Nd5
{[%clk 0:02:51.7]} 13. O-O-O {[%clk 0:03:00.2]} 13... Qa5 {[%clk 0:02:44.2]} 14.
Kb1 {[%clk 0:02:56.8]} 14... b5 {[%clk 0:02:34.9]} 15. Bxd5 {[%clk 0:02:54.8]}
15... cxd5 {[%clk 0:02:35.4]} 16. f4 {[%clk 0:02:51.6]} 16... Rc8 {[%clk
0:02:09.2]} 17. Rd2 {[%clk 0:02:49.4]} 17... Bb4 {[%clk 0:02:03]} 18. f5 {[%clk
0:02:49]} 18... Bxd2 {[%clk 0:02:01.8]} 19. Bxd2 {[%clk 0:02:49.3]} 19... Qc7
{[%clk 0:02:02.8]} 20. Bb4 {[%clk 0:02:43.6]} 20... Bxf5 {[%clk 0:02:00.6]} 21.
Nxf5 {[%clk 0:02:43.2]} 21... exf5 {[%clk 0:02:01.9]} 22. e6 {[%clk 0:02:40.2]}
22... a5 {[%clk 0:01:54.7]} 23. Qxb5+ {[%clk 0:02:30]} 23... Qc6 {[%clk
0:01:55.4]} 24. Qxc6+ {[%clk 0:02:15.1]} 24... Rxc6 {[%clk 0:01:55.7]} 25. exf7+
{[%clk 0:02:16.5]} 25... Kxf7 {[%clk 0:01:56.9]} 26. Bxa5 {[%clk 0:02:17.2]}
26... Re8 {[%clk 0:01:56.3]} 27. b4 {[%clk 0:02:14.8]} 27... Re2 {[%clk
0:01:56]} 28. Rc1 {[%clk 0:02:13.6]} 28... Rxg2 {[%clk 0:01:56.8]} 29. b5 {[%clk
0:02:12.1]} 29... Rc5 {[%clk 0:01:57.9]} 30. a4 {[%clk 0:02:11.6]} 30... Rg4
{[%clk 0:01:59.4]} 31. Bb6 {[%clk 0:01:30.9]} 31... Rb4+ {[%clk 0:01:54.8]} 32.
Ka2 {[%clk 0:01:30.9]} 32... Rxa4+ {[%clk 0:01:56.7]} 33. Kb3 {[%clk 0:01:32]}
33... Rxb5+ {[%clk 0:01:58.6]} 34. Kxa4 {[%clk 0:01:32.8]} 34... Rxb6 {[%clk
0:02:00.5]} 35. Rd1 {[%clk 0:01:29.9]} 35... Ke6 {[%clk 0:02:00.7]} 36. Re1+
{[%clk 0:01:28.3]} 36... Kf6 {[%clk 0:02:01.7]} 37. Rd1 {[%clk 0:01:29.2]} 37...
Ke5 {[%clk 0:01:54.3]} 38. Re1+ {[%clk 0:01:29.7]} 38... Kd4 {[%clk 0:01:51.8]}
39. Rd1+ {[%clk 0:01:28.8]} 39... Kc4 {[%clk 0:01:52.8]} 40. Ka3 {[%clk
0:01:27.3]} 40... d4 {[%clk 0:01:52.7]} 41. Rf1 {[%clk 0:01:26]} 41... Rb5
{[%clk 0:01:52.9]} 42. h5 {[%clk 0:01:24.9]} 42... Kc3 {[%clk 0:01:54]} 43. Ka4
{[%clk 0:01:23.6]} 43... Re5 {[%clk 0:01:51]} 44. Rf2 {[%clk 0:01:21.1]} 44...
f4 {[%clk 0:01:38]} 45. Rxf4 {[%clk 0:01:17.8]} 45... Rxh5 {[%clk 0:01:39]} 46.
Rf7 {[%clk 0:01:09.9]} 46... Rg5 {[%clk 0:01:39.1]} 47. Rc7+ {[%clk 0:01:09.8]}
47... Kd2 {[%clk 0:01:40]} 48. Kb4 {[%clk 0:01:09.1]} 48... h5 {[%clk
0:01:40.4]} 49. Kc4 {[%clk 0:01:08.5]} 49... Rg4 {[%clk 0:01:41.7]} 50. Kd5
{[%clk 0:01:06.2]} 50... h4 {[%clk 0:01:42.6]} 51. Rc8 {[%clk 0:01:01.2]} 51...
g5 {[%clk 0:01:41]} 52. Ke5 {[%clk 0:00:59.6]} 52... h3 {[%clk 0:01:39.2]} 53.
Kf5 {[%clk 0:00:59.9]} 53... h2 {[%clk 0:01:38.9]} 54. Kxg4 {[%clk 0:00:54.2]}
54... h1=Q {[%clk 0:01:39.7]} 55. Kxg5 {[%clk 0:00:55.8]} 55... Qd5+ {[%clk
0:01:40.2]} 56. Kf4 {[%clk 0:00:55.3]} 56... Qd6+ {[%clk 0:01:40.5]} 57. Kf3
{[%clk 0:00:55.4]} 57... Qf6+ {[%clk 0:01:39.7]} 58. Kg2 {[%clk 0:00:52.8]}
58... Qg6+ {[%clk 0:01:39.6]} 59. Kh2 {[%clk 0:00:49.8]} 59... Qxc2 {[%clk
0:01:40.2]} 60. Rxc2+ {[%clk 0:00:45.9]} 60... Kxc2 {[%clk 0:01:40.8]} 0-1

[Event "*** MasterClass Titled Tuesday Blitz"]
[Site "Chess.com"]
[Date "2017.12.12"]
[Round "7"]
[White "pedromartinez91"]
[Black "gammagramma"]
[Result "0-1"]
[WhiteElo "2214"]
[BlackElo "2477"]
[TimeControl "180+2"]
[EndTime "14:38:41 PST"]
[Termination "gammagramma won on time"]

1. Nf3 {[%clk 0:03:01.9]} 1... d5 {[%clk 0:03:00.1]} 2. d4 {[%clk 0:02:58.6]}
2... Nf6 {[%clk 0:03:00.1]} 3. c4 {[%clk 0:02:59.3]} 3... dxc4 {[%clk
0:03:01.4]} 4. e3 {[%clk 0:02:59.8]} 4... g6 {[%clk 0:03:02.4]} 5. Bxc4 {[%clk
0:03:00.3]} 5... Bg7 {[%clk 0:03:04]} 6. O-O {[%clk 0:02:59.1]} 6... O-O {[%clk
0:03:05.4]} 7. h3 {[%clk 0:03:00]} 7... Nc6 {[%clk 0:03:06.4]} 8. Nc3 {[%clk
0:02:55.4]} 8... Bf5 {[%clk 0:03:07.7]} 9. Bd2 {[%clk 0:02:52.4]} 9... Ne4
{[%clk 0:03:06.6]} 10. Nxe4 {[%clk 0:02:51.5]} 10... Bxe4 {[%clk 0:03:08.5]} 11.
Bc3 {[%clk 0:02:52.5]} 11... e6 {[%clk 0:02:59.6]} 12. Rc1 {[%clk 0:02:49.3]}
12... Bd5 {[%clk 0:02:54.5]} 13. Qe2 {[%clk 0:02:47.6]} 13... Bxc4 {[%clk
0:02:53.9]} 14. Qxc4 {[%clk 0:02:48.2]} 14... Qd5 {[%clk 0:02:55.5]} 15. Bd2
{[%clk 0:02:26.7]} 15... Rfc8 {[%clk 0:02:52.7]} 16. a3 {[%clk 0:02:25.1]} 16...
a5 {[%clk 0:02:49.7]} 17. b3 {[%clk 0:02:14.1]} 17... Ne7 {[%clk 0:02:43.1]} 18.
a4 {[%clk 0:02:11.1]} 18... c6 {[%clk 0:02:40.9]} 19. Qxd5 {[%clk 0:02:02.3]}
19... cxd5 {[%clk 0:02:32.7]} 20. Rxc8+ {[%clk 0:01:58.6]} 20... Nxc8 {[%clk
0:02:30.9]} 21. Rc1 {[%clk 0:01:58.7]} 21... b6 {[%clk 0:02:09]} 22. Rc6 {[%clk
0:01:47.9]} 22... Rb8 {[%clk 0:02:06.4]} 23. Kf1 {[%clk 0:01:43.9]} 23... Kf8
{[%clk 0:02:07.1]} 24. Ke2 {[%clk 0:01:44.2]} 24... Ke8 {[%clk 0:02:08.3]} 25.
Kd3 {[%clk 0:01:43.9]} 25... Kd7 {[%clk 0:02:08.5]} 26. Rc2 {[%clk 0:01:40.2]}
26... Nd6 {[%clk 0:02:09.5]} 27. Be1 {[%clk 0:01:26.1]} 27... Bf6 {[%clk
0:01:56.4]} 28. Nd2 {[%clk 0:01:25.4]} 28... b5 {[%clk 0:01:55.1]} 29. Rc5
{[%clk 0:01:11.8]} 29... Bd8 {[%clk 0:01:48.4]} 30. Nf3 {[%clk 0:01:05.7]} 30...
f6 {[%clk 0:01:48.5]} 31. Nd2 {[%clk 0:00:44]} 31... bxa4 {[%clk 0:01:49.2]} 32.
bxa4 {[%clk 0:00:45.9]} 32... Rb4 {[%clk 0:01:49.9]} 33. Rc3 {[%clk 0:00:39.3]}
33... Rxa4 {[%clk 0:01:49.6]} 34. Nb3 {[%clk 0:00:40.4]} 34... Bb6 {[%clk
0:01:39]} 35. Kc2 {[%clk 0:00:27.4]} 35... Ne4 {[%clk 0:01:27.6]} 36. Rd3 {[%clk
0:00:25.6]} 36... Rc4+ {[%clk 0:01:28.6]} 37. Kb2 {[%clk 0:00:26.3]} 37... a4
{[%clk 0:01:29.8]} 38. Nd2 {[%clk 0:00:26.1]} 38... Nxd2 {[%clk 0:01:26.3]} 39.
Bxd2 {[%clk 0:00:28]} 39... Kc6 {[%clk 0:01:20.9]} 40. Ka3 {[%clk 0:00:25.2]}
40... Kb5 {[%clk 0:01:17.4]} 41. Bc3 {[%clk 0:00:24.2]} 41... Bc7 {[%clk
0:01:16]} 42. Bb4 {[%clk 0:00:18.1]} 42... Rxb4 {[%clk 0:01:16]} 0-1

[Event "*** MasterClass Titled Tuesday Blitz"]
[Site "Chess.com"]
[Date "2017.12.12"]
[Round "7"]
[White "Quiet_Desperation"]
[Black "Bryakin_Mikhail"]
[Result "0-1"]
[WhiteElo "2369"]
[BlackElo "2536"]
[TimeControl "180+2"]
[EndTime "14:39:18 PST"]
[Termination "Bryakin_Mikhail won by resignation"]

1. e4 {[%clk 0:03:00.1]} 1... c6 {[%clk 0:02:59.8]} 2. Nc3 {[%clk 0:03:00.6]}
2... d5 {[%clk 0:03:01.6]} 3. Nf3 {[%clk 0:03:01.8]} 3... Nf6 {[%clk 0:03:00.6]}
4. e5 {[%clk 0:02:59.2]} 4... Ne4 {[%clk 0:03:01.8]} 5. d4 {[%clk 0:02:56.3]}
5... Nxc3 {[%clk 0:02:59.5]} 6. bxc3 {[%clk 0:02:56.6]} 6... Bf5 {[%clk
0:02:58.3]} 7. Be2 {[%clk 0:02:56.7]} 7... e6 {[%clk 0:02:59.5]} 8. O-O {[%clk
0:02:57.8]} 8... Nd7 {[%clk 0:03:00.5]} 9. Ne1 {[%clk 0:02:58.4]} 9... h6 {[%clk
0:03:01.4]} 10. f4 {[%clk 0:02:59.5]} 10... Be7 {[%clk 0:02:55.7]} 11. Be3
{[%clk 0:02:49.7]} 11... Nb6 {[%clk 0:02:48.5]} 12. Rb1 {[%clk 0:02:45.2]} 12...
Rb8 {[%clk 0:02:48.4]} 13. Bd3 {[%clk 0:02:42.8]} 13... Nc4 {[%clk 0:02:48.8]}
14. Bxc4 {[%clk 0:02:40.7]} 14... dxc4 {[%clk 0:02:50.7]} 15. Qe2 {[%clk
0:02:35.1]} 15... Qd5 {[%clk 0:02:51.5]} 16. Nf3 {[%clk 0:02:26.6]} 16... h5
{[%clk 0:02:51.4]} 17. Ng5 {[%clk 0:02:10.4]} 17... Bxg5 {[%clk 0:02:50.4]} 18.
fxg5 {[%clk 0:02:11.6]} 18... b5 {[%clk 0:02:45.2]} 19. Bc1 {[%clk 0:02:05.3]}
19... g6 {[%clk 0:02:44.4]} 20. Ba3 {[%clk 0:02:05.8]} 20... Kd7 {[%clk
0:02:45.7]} 21. Bd6 {[%clk 0:02:06.1]} 21... Rb6 {[%clk 0:02:45.4]} 22. a4
{[%clk 0:02:01.8]} 22... Ra6 {[%clk 0:02:22.3]} 23. axb5 {[%clk 0:01:59.5]}
23... cxb5 {[%clk 0:02:24.2]} 24. Ra1 {[%clk 0:01:57.9]} 24... Rxa1 {[%clk
0:02:15]} 25. Rxa1 {[%clk 0:01:57.2]} 25... Ra8 {[%clk 0:02:16.5]} 26. Bc5
{[%clk 0:01:48.2]} 26... a5 {[%clk 0:02:14.4]} 27. Bb6 {[%clk 0:01:38.7]} 27...
a4 {[%clk 0:02:06.2]} 28. Bc5 {[%clk 0:01:38.6]} 28... Kc6 {[%clk 0:02:03.1]}
29. Bb4 {[%clk 0:01:18.7]} 29... h4 {[%clk 0:02:04.2]} 30. Qf3 {[%clk
0:01:14.2]} 30... Rh8 {[%clk 0:01:51.1]} 31. Qe2 {[%clk 0:01:02.5]} 31... Rh5
{[%clk 0:01:49.1]} 32. Qd2 {[%clk 0:01:03.1]} 32... Be4 {[%clk 0:01:35.2]} 33.
Be7 {[%clk 0:00:56.2]} 33... Bf5 {[%clk 0:01:28.4]} 34. h3 {[%clk 0:00:51.5]}
34... Rh8 {[%clk 0:01:26.1]} 35. Re1 {[%clk 0:00:52.4]} 35... Ra8 {[%clk
0:01:22.3]} 36. Qc1 {[%clk 0:00:52.5]} 36... Be4 {[%clk 0:01:15.6]} 37. Re2
{[%clk 0:00:49.2]} 37... Bf5 {[%clk 0:01:16.7]} 38. Qa3 {[%clk 0:00:48.3]} 38...
Re8 {[%clk 0:01:08.9]} 39. Bc5 {[%clk 0:00:44.4]} 39... Rh8 {[%clk 0:01:05.5]}
40. Ba7 {[%clk 0:00:37.4]} 40... Re8 {[%clk 0:01:01.5]} 41. Qb4 {[%clk
0:00:36.3]} 41... Ra8 {[%clk 0:00:56.7]} 42. Qa5 {[%clk 0:00:32.1]} 42... Kd7
{[%clk 0:00:50.5]} 43. Qa6 {[%clk 0:00:13.8]} 43... Qc6 {[%clk 0:00:50.1]} 44.
Qxc6+ {[%clk 0:00:14.3]} 44... Kxc6 {[%clk 0:00:52]} 45. Bc5 {[%clk 0:00:15.9]}
45... a3 {[%clk 0:00:53.5]} 46. Re1 {[%clk 0:00:17.1]} 46... a2 {[%clk 0:00:55]}
47. Ra1 {[%clk 0:00:18.1]} 47... Bxc2 {[%clk 0:00:56.6]} 48. Kf2 {[%clk
0:00:19.5]} 48... Bb1 {[%clk 0:00:58.2]} 49. Ke3 {[%clk 0:00:20.6]} 49... Kd5
{[%clk 0:00:59.7]} 50. Kf4 {[%clk 0:00:21.7]} 50... Rb8 {[%clk 0:00:56.9]} 51.
Kg4 {[%clk 0:00:21.4]} 51... b4 {[%clk 0:00:58.1]} 52. cxb4 {[%clk 0:00:22.9]}
52... c3 {[%clk 0:00:59.4]} 53. Kxh4 {[%clk 0:00:24.5]} 53... c2 {[%clk
0:01:00.7]} 0-1

[Event "*** MasterClass Titled Tuesday Blitz"]
[Site "Chess.com"]
[Date "2017.12.12"]
[Round "7"]
[White "marreta84"]
[Black "AquivaRubinstein"]
[Result "1-0"]
[WhiteElo "2315"]
[BlackElo "2266"]
[TimeControl "180+2"]
[EndTime "14:39:44 PST"]
[Termination "marreta84 won by resignation"]

1. d4 {[%clk 0:03:01.9]} 1... Nf6 {[%clk 0:02:59.5]} 2. Nf3 {[%clk 0:03:02.1]}
2... c5 {[%clk 0:02:57.2]} 3. c3 {[%clk 0:03:01.5]} 3... e6 {[%clk 0:02:54.3]}
4. Bf4 {[%clk 0:03:01.3]} 4... b6 {[%clk 0:02:54.6]} 5. Nbd2 {[%clk 0:03:01]}
5... Bb7 {[%clk 0:02:55.6]} 6. h3 {[%clk 0:03:01.8]} 6... d6 {[%clk 0:02:56.5]}
7. e3 {[%clk 0:03:01.9]} 7... Nbd7 {[%clk 0:02:57.5]} 8. Bd3 {[%clk 0:03:02.7]}
8... Be7 {[%clk 0:02:58.7]} 9. Qe2 {[%clk 0:03:03]} 9... O-O {[%clk 0:02:59.7]}
10. Bh2 {[%clk 0:03:04.4]} 10... Re8 {[%clk 0:02:58.2]} 11. O-O {[%clk
0:03:05.1]} 11... Bf8 {[%clk 0:02:59.2]} 12. a4 {[%clk 0:03:05.1]} 12... e5
{[%clk 0:02:58.8]} 13. dxe5 {[%clk 0:03:05.7]} 13... dxe5 {[%clk 0:02:59.9]} 14.
e4 {[%clk 0:03:07.2]} 14... Nh5 {[%clk 0:02:53.9]} 15. g3 {[%clk 0:03:02.4]}
15... g6 {[%clk 0:02:38.4]} 16. a5 {[%clk 0:03:01.8]} 16... Bh6 {[%clk
0:02:17.5]} 17. Nc4 {[%clk 0:02:58.4]} 17... Qe7 {[%clk 0:02:15.4]} 18. Rfd1
{[%clk 0:02:55.8]} 18... b5 {[%clk 0:02:03.8]} 19. Ne3 {[%clk 0:02:55.4]} 19...
c4 {[%clk 0:02:03.5]} 20. Bc2 {[%clk 0:02:56.5]} 20... Bxe3 {[%clk 0:01:54.7]}
21. Qxe3 {[%clk 0:02:56.7]} 21... a6 {[%clk 0:01:54.1]} 22. Rd2 {[%clk
0:02:43.8]} 22... Rf8 {[%clk 0:01:48.6]} 23. Rad1 {[%clk 0:02:42.4]} 23... Nc5
{[%clk 0:01:49.4]} 24. Rd6 {[%clk 0:02:39.1]} 24... Rac8 {[%clk 0:01:46.1]} 25.
Nxe5 {[%clk 0:02:26.6]} 25... Qxe5 {[%clk 0:01:41.1]} 26. g4 {[%clk 0:02:26.7]}
26... Qe7 {[%clk 0:01:23.7]} 27. gxh5 {[%clk 0:02:25.5]} 27... Qh4 {[%clk
0:00:55.7]} 28. hxg6 {[%clk 0:01:35.6]} 28... hxg6 {[%clk 0:00:55.8]} 29. R6d4
{[%clk 0:00:39.6]} 29... Rfe8 {[%clk 0:00:54.4]} 30. Bd6 {[%clk 0:00:17.9]}
30... Ne6 {[%clk 0:00:53.1]} 31. e5 {[%clk 0:00:18.6]} 31... Nxd4 {[%clk
0:00:51]} 32. Rxd4 {[%clk 0:00:20.5]} 32... Qh5 {[%clk 0:00:47.3]} 33. Bd1
{[%clk 0:00:20.1]} 33... Qf5 {[%clk 0:00:40.8]} 34. Bg4 {[%clk 0:00:21.6]} 34...
Qb1+ {[%clk 0:00:40.4]} 35. Kh2 {[%clk 0:00:23]} 35... Qh1+ {[%clk 0:00:40]} 36.
Kg3 {[%clk 0:00:24.4]} 36... Qg2+ {[%clk 0:00:40.5]} 37. Kh4 {[%clk 0:00:25.6]}
37... Kg7 {[%clk 0:00:37.5]} 38. Qg3 {[%clk 0:00:12.8]} 38... Rh8+ {[%clk
0:00:37.7]} 39. Kg5 {[%clk 0:00:14.4]} 39... Qf1 {[%clk 0:00:28.5]} 40. Qf4
{[%clk 0:00:13.9]} 40... Rcd8 {[%clk 0:00:13.2]} 41. Qf6+ {[%clk 0:00:14.3]}
41... Kg8 {[%clk 0:00:12.8]} 42. Qxd8+ {[%clk 0:00:14.7]} 42... Kh7 {[%clk
0:00:13.7]} 43. Qf6 {[%clk 0:00:14.1]} 43... Kg8 {[%clk 0:00:13.9]} 44. e6
{[%clk 0:00:14.3]} 44... Qc1+ {[%clk 0:00:12.5]} 45. Bf4 {[%clk 0:00:13.7]}
45... Rh5+ {[%clk 0:00:12.3]} 46. Bxh5 {[%clk 0:00:14.2]} 46... Qg1+ {[%clk
0:00:13.9]} 47. Bg4 {[%clk 0:00:15.4]} 1-0